Cogmind - Beta 13 @@@ ROGUE MODE // 2024.04.16 @ 20:09:05 Player: Gold Spoon Result: Destroyed by YI-UF0 with YI-UF0's Doublenader Performance ------------- Evolutions (0) 0 Regions Visited (2) 400 Robots Destroyed (19) 95 Value Destroyed (572) 572 Prototype IDs (2) 40 Alien Tech Used (0) 0 Bonus (0) 0 TOTAL SCORE: 1107 Bonus ------- None Cogmind --------- Core Integrity 0/250 Matter 499/500 Energy 100/100 System Corruption 0% Temperature Cool (0) Movement Core (150) Ox2 Location -10/Mines Parts ------- > --- POWER (1) -------- (None) > --- PROPULSION (2) --- (None) > --- UTILITY (2) ------ High-capacity Matter Pod Signal Interpreter > --- WEAPON (2) ------- Grenade Launcher > --- INVENTORY (5) ---- High-capacity Storage Unit Peak State ------------ > --- POWER ------------ Improved Ion Engine > --- PROPULSION ------- Light Treads Light Treads > --- UTILITY ---------- Small Storage Unit Medium Armor Plating > --- WEAPON ----------- Heavy Assault Rifle Heavy Assault Rifle > --- INVENTORY -------- Assault Rifle Light Assault Rifle [Rating: 11] Favorites ----------- Power Improved Ion Engine Engine Improved Ion Engine Propulsion Light Treads Treads Light Treads Utility Signal Interpreter Storage High-capacity Matter Pod Processor Signal Interpreter Protection Medium Armor Plating Weapon Heavy Assault Rifle Ballistic Gun Heavy Assault Rifle Launcher Grenade Launcher Build | -11 -10 -10 ------- Run | Yrd Mat Min Slots Evolved . | . . . Power . | . . . Propulsion . | . . . Utility . | . . . Weapon . | . . . Parts Attached 15 | 6 6 3 Power 2 | 1 1 . Engine 2 | 1 1 . Core . | . . . Reactor . | . . . Propulsion 4 | 2 1 1 Treads 4 | 2 1 1 Leg . | . . . Wheel . | . . . Hover . | . . . Flight . | . . . Utility 4 | 1 2 1 Device . | . . . Storage 2 | 1 . 1 Processor 1 | . 1 . Hackware . | . . . Protection 1 | . 1 . Artifact . | . . . Weapon 5 | 2 2 1 Energy Gun . | . . . Energy Cannon . | . . . Ballistic Gun 4 | 2 2 . Ballistic Cannon . | . . . Launcher 1 | . . 1 Special Weapon . | . . . Impact Weapon . | . . . Slashing Weapon . | . . . Piercing Weapon . | . . . Special Melee Weapon . | . . . Unidentified Prototypes . | . . . Parts Lost 7 | . . 7 Power 1 | . . 1 Propulsion 3 | . . 3 Utility 1 | . . 1 Weapon 2 | . . 2 Highest Loss Streak 6 | . . 6 To Critical Strikes . | . . . Average Slot Usage (%) 99 | . 99 98 Engine 14 | . 14 14 Treads 28 | . 28 28 Storage 3 | . . 10 Processor 13 | . 13 14 Protection 10 | . 13 2 Ballistic Gun 27 | . 28 27 Naked Turns . | . . . Heaviest Build 25 | 13 25 20 Greatest Support 40 | 40 40 40 Greatest Overweight (x) . | . . . Average Overweight (x) . | . . . Largest Inventory Capacity 8 | 8 8 5 Average Capacity 5 | 6 5 5 Most Carried 5 | 5 4 4 Average Carried 3 | . 3 3 Final Capacity 8 | 8 5 5 Final Carried 4 | . 4 1 Class Distribution -------------------- 100% | Mutant Dominant Class ---------------- Mutant | -10/Materials Mutant | -10/Mines Resources | -11 -10 -10 ----------- Run | Yrd Mat Min Matter Collected 940 | 238 335 367 Remotely . | . . . Salvage Created 659 | . 364 295 Parts 43 | . 28 15 Haulers Intercepted . | . . . Recyclers Shooed . | . . . Parts Field Recycled . | . . . Retrieved Matter . | . . . Parts Self-Destructed . | . . . Prevented . | . . . Kills | -11 -10 -10 ------- Run | Yrd Mat Min Combat Hostiles Destroyed 15 | . 9 6 Guns 15 | . 9 6 Classes Destroyed 4 | . 4 . Worker 1 | . 1 . Watcher 3 | . 3 . Swarmer 3 | . 3 . Grunt 12 | . 6 6 Best Kill Streak 5 | . 5 2 Combat Bots Only 5 | . 5 2 Max Kills in Single Turn 2 | . 2 1 Gunslinging 1 | . 1 . Exploded . | . . . Melee . | . . . Uniques/NPCs Destroyed . | . . . Combat | -11 -10 -10 -------- Run | Yrd Mat Min Hostile Shots Fired 105 | . 45 60 Missed 39 | . 16 23 Damage Taken 1149 | . 314 835 Core 250 | . 32 218 Absorbed by Shields . | . . . Core Remaining (%) 100 | 100 . . Volleys Fired 62 | . 33 29 Largest 2 | . 2 2 Hottest 46 | . 46 46 Shots Fired 123 | . 66 57 Gun 123 | . 66 57 Cannon . | . . . Launcher . | . . . Special . | . . . Kinetic 123 | . 66 57 Thermal . | . . . Explosive . | . . . Electromagnetic . | . . . Robot Hit Streak 8 | . 8 8 Robot Miss Streak 4 | . 4 4 Penetration Max . | . . . Secondary Targets 3 | . 2 1 Max Gunslinging Chain 1 | . 1 1 Shots Hit Robots 73 | . 38 35 Core Hits 34 | . 23 11 Critical Kills . | . . . Critical Parts Destroyed 1 | . 1 . Critical Strikes 1 | . 1 . Destroy 1 | . 1 . Melee Attacks . | . . . Impact . | . . . Slashing . | . . . Piercing . | . . . Sneak Attacks . | . . . Combat Hostiles . | . . . Follow-up Attacks . | . . . Damage Inflicted 1197 | . 631 566 Guns 1152 | . 589 563 Cannons . | . . . Explosions . | . . . Melee . | . . . Ramming 45 | . 42 3 Kinetic 1152 | . 589 563 Thermal . | . . . Explosive . | . . . Electromagnetic . | . . . Impact . | . . . Slashing . | . . . Piercing . | . . . Highest Corruption . | . . . Average Corruption . | . . . Corruption Purged . | . . . Corruption Blocked . | . . . Overload Shots . | . . . Overflow Damage . | . . . Projectiles . | . . . Explosions . | . . . Melee . | . . . Knockbacks . | . . . Impact . | . . . Kinetic . | . . . Secondary . | . . . Self-Inflicted Damage . | . . . Shots . | . . . Rammed 12 | . 11 1 Targets Rammed 12 | . 11 1 Kicked . | . . . Crushed . | . . . Highest Temperature 58 | . 58 20 Average Temperature 16 | . 24 7 Received Heat Transfer 357 | . 144 213 Siege Activations . | . . . Robots Corrupted . | . . . Combat Hostiles . | . . . Parts Fried . | . . . Impact Corruptions . | . . . Robots Melted . | . . . Combat Hostiles . | . . . Parts Melted . | . . . Heat Transferred . | . . . Parts Sabotaged . | . . . Parts Stolen . | . . . Parts Stripped . | . . . Power Chain Reactions . | . . . Alert | -11 -10 -10 ------- Run | Yrd Mat Min Peak Influence 202 | . 202 155 Initial . | . . . Average 78 | . 72 106 Maximum Alert Level 1 | . 1 . Low Security (%) 90 | 100 87 100 Level 1 9 | . 12 . Level 2 . | . . . Level 3 . | . . . Level 4 . | . . . Level 5 . | . . . High Security . | . . . Max Security . | . . . Squads Dispatched 1 | . 1 . Investigation 1 | . 1 . Extermination . | . . . Reinforcement . | . . . Assault . | . . . Garrison . | . . . Intercept . | . . . Searches Triggered . | . . . Construction Impeded . | . . . Haulers Reinforced . | . . . Active Scanning Responses . | . . . Cargo Convoy Interrupts . | . . . Stealth | -11 -10 -10 --------- Run | Yrd Mat Min Distress Signals . | . . . Communications Jammed . | . . . Distress Signals . | . . . Times Spotted 23 | . 16 7 Peak Tracking Total 4 | . 4 2 Tactical Retreats 1 | . 1 . Traps | -11 -10 -10 ------- Run | Yrd Mat Min Traps Triggered . | . . . Indirectly . | . . . Trap Hack Attempts . | . . . Triggered . | . . . Disarmed 1 | . 1 . Reprogrammed . | . . . Reused . | . . . Traps Extracted . | . . . Installed . | . . . Triggered . | . . . Machines | -11 -10 -10 ---------- Run | Yrd Mat Min Machines Disabled 2 | . 1 1 Max in Single Turn 1 | . 1 1 Machines Repaired . | . . . Machines Dismantled . | . . . Machines Sabotaged . | . . . Overloaded Fab Kills . | . . . Hacking | -11 -10 -10 --------- Run | Yrd Mat Min Machines Accessed 8 | . 8 . Terminals 8 | . 8 . Fabricators . | . . . Repair Stations . | . . . Recycling Units . | . . . Scanalyzers . | . . . Garrison Access . | . . . Total Hacks 26 | . 26 . Successful 14 | . 14 . Failed 11 | . 11 . Catastrophic 3 | . 3 . Database Lockouts 1 | . 1 . Manual . | . . . Terminals 26 | . 26 . Fabricators . | . . . Repair Stations . | . . . Recycling Units . | . . . Scanalyzers . | . . . Garrison Access . | . . . Terminal Hacks 14 | . 14 . Record 4 | . 4 . Robot Analysis 1 | . 1 . Prototype ID Bank 1 | . 1 . Emergency Access Points 1 | . 1 . Alert Level 1 | . 1 . Locate Traps 2 | . 2 . Disarm Traps 1 | . 1 . Investigation Status 1 | . 1 . Zone Layout 2 | . 2 . Fabricator Hacks . | . . . Repair Station Hacks . | . . . Recycling Unit Hacks . | . . . Scanalyzer . | . . . Garrison Access Hacks . | . . . Unauthorized Hacks . | . . . Terminals . | . . . Fabricators . | . . . Repair Stations . | . . . Recycling Units . | . . . Scanalyzers . | . . . Garrison Access . | . . . Data Cores Recovered . | . . . Used . | . . . Hacking Detections 8 | . 8 . Full Trace Events 3 | . 3 . Feedback Events . | . . . Feedback Blocked . | . . . Robot Schematics Acquired . | . . . Robots Built . | . . . Authchips . | . . . Time . | . . . Total Robot Build Rating . | . . . Part Schematics Acquired . | . . . Parts Built . | . . . Authchips . | . . . Time . | . . . Total Part Build Rating . | . . . Parts Repaired . | . . . Time . | . . . Parts Recycled . | . . . Recycled Matter . | . . . Retrieved Matter . | . . . Retrieved Components . | . . . Parts Scanalyzed . | . . . Part Schematics Acquired . | . . . Parts Damaged . | . . . Bothacking | -11 -10 -10 ------------ Run | Yrd Mat Min Used RIF Installer . | . . . Robots Hacked . | . . . Non-combat . | . . . Combat . | . . . Robot Hacks Applied . | . . . Relay Couplers Released . | . . . Fabnet Peak Effective % . | . . . Robots Rewired . | . . . Allies Hacked . | . . . Hacks Repelled . | . . . Allies | -11 -10 -10 -------- Run | Yrd Mat Min Total Allies . | . . . Largest Group . | . . . Highest-Rated Group . | . . . Highest-Rated Ally . | . . . Total Orders . | . . . Ally Attacks . | . . . Total Damage . | . . . Kills . | . . . Allies Corrupted . | . . . Allies Melted . | . . . Intel | -11 -10 -10 ------- Run | Yrd Mat Min Robot Analysis Total 1 | . 1 . Derelict Logs Recovered . | . . . Drone Launches . | . . . Drone Recoveries . | . . . Exploration | -11 -10 -10 ------------- Run | Yrd Mat Min Turns Passed 1780 | 71 1262 447 Spaces Moved 976 | 54 699 223 Core 24 | 24 . . Treads 952 | 30 699 223 Legs . | . . . Wheels . | . . . Hover . | . . . Flight . | . . . Fastest Speed 50 | 50 160 160 Average Speed 157 | 111 160 160 Slowest Speed 160 | 160 160 160 Overloaded Moves . | . . . Propulsion Burnouts . | . . . Robots Hopped . | . . . Cave-ins Triggered . | . . . Exploration Rate (%) 45 | 4 96 36 Regions Visited 2 Branch Regions 1 Pre-discovered Areas . | . . . Known Exits Taken 1 | . 1 . Unknown Exits Taken 1 | 1 . . Scrap Searched . | . . . Spaces Dug . | . . . Terrain Destroyed . | . . . Melee . | . . . Projectile . | . . . AOE . | . . . Terrain Rammed . | . . . Walls Destroyed . | . . . Machines Disabled . | . . . Actions | -11 -10 -10 --------- Run | Yrd Mat Min Total 1092 | 65 771 256 Wait 6 | . 6 . Move 974 | 53 698 223 Hop . | . . . Pick Up 17 | 6 11 . Fast Attach . | . . . Attach 10 | 6 1 3 Detach . | . . . Swap 5 | . 5 . Drop 6 | . 6 . Fire 62 | . 33 29 Melee . | . . . Ram . | . . . Kick . | . . . Crush 12 | . 11 1 Escape Stasis . | . . . Rewire . | . . . Trap . | . . . Miscellaneous . | . . . Route ------- -11/Scrapyard -10/Materials (discovered 5 exits: *Mat x3 / *Min x2) -10/Mines (discovered 1 exit: *Exi) History --------- Turn | Location | Event 9 | -11/Scrapyard | Discovered new exit (range 15) 72 | -11/Scrapyard | Entered Materials 101 | -10/Materials | Central database locked down 309 | -10/Materials | Build established: Mutant 321 | -10/Materials | Discovered new exit (range 15) 410 | -10/Materials | Discovered new exit (range 10) 545 | -10/Materials | Identified exit to Mines 700 | -10/Materials | Discovered new exit (range 8) 709 | -10/Materials | Identified exit to Materials 1004 | -10/Materials | Discovered exit to Materials (range 16) 1170 | -10/Materials | Discovered exit to Mines (range 15) 1334 | -10/Materials | Entered Mines 1679 | -10/Mines | Deemed a non-threat by the Exiles lab entrance 1679 | -10/Mines | Discovered new exit (range 5) 1683 | -10/Mines | Identified exit to Exiles 1758 | -10/Mines | Core integrity fell below 50% 1778 | -10/Mines | Core integrity fell below 20% 1781 | -10/Mines | Destroyed by YI-UF0 with YI-UF0's Doublenader Last Messages --------------- Acquired 72 matter. K-01 Serf collects debris. Slammed into R-06 Scavenger. K-01 Serf collects debris. "No threat detected, you may enter." EXIT=FOUND EXIT=IDENTIFIED: EXILES Lgt. Treads destroyed. R-06 Scavenger destroyed. Hvy. Assault Rifle destroyed. The unstable cave ceiling collapses. K-01 Serf collects debris. The unstable cave ceiling collapses. K-01 Serf collects debris. Hvy. Assault Rifle destroyed. The unstable cave ceiling collapses. YI-UF0 mumbles something. Lgt. Treads destroyed. Imp. Ion Engine destroyed. Lgt. Treads destroyed. Map ----- +----------------------------------------------------+ | ?????????????????????????????????????????????????? | | ?????????????????????????????????????????????????? | | ?????????????????????????????????????????????????? | | ?????????????????????????????????????????????????? | | ?????????????????????????????????????????????????? | | ???????????????????????????????? ????????????????? | | ??????????????????????????????? #??????????????? | | ?????????????????????##???????? ???????????????? | | ????????????????????? #??????? ???????????????? | | ?????????????????????? #?????? ????????????????? | | ?????????????????????? ????? ????????????????? | | ?????????????????????? #???? ###??????????????? | | ?????????????????????? ???? #? ##??????????? | | ??????????????????????? ???? # #??????????? | | ??????????????????????? ???* #??????????? | | ??????????????????????? ??? * ??????????? | | ????????????????????#### #### ???????????? | | ????????????????????# ?????????????? | | ????????????????????# # g #??????????????? | | ????????????????????# #??????????????? | | ????????????????????# #??????????????? | | ????????????????????# # ###??????????????? | | ????????????????????## #????????????????? | | ???????????????????## ! ###?????????????????? | | ??????????????????## k #???????????????????? | | ??????????????????# @ ##??????????????????? | | ?????????????????## ##?????????????????? | | ?????????????????# #?????????????????? | | ?????????????????# # #?????????????????? | | ?????????????????# # * #?????????????????? | | ?????????######### # ??????????????? | | ????????## # #########?????????????? | | ??# ????# ! ########## ####?????????????????????? | | ??# #### #####????###????????????????????????? | | ??# ! [ #???????????????????????????????? | | ??# == ## #???????????????????????????????? | | ??####### ## ## #???????????????????????????????? | | ????????# ###### #???????????????????????????????? | | ????????# #????# #???????????????????????????????? | | ######### #????# #???????????????????????????????? | | # #????# #???????????????????????????????? | | # ####### #????# #???????????????????????????????? | | #????## #????# #?????###############???????????? | | ##???## ##???# #######= #???????????? | | ##????# ##### """ """ """ #???????????? | | ?????## """ """ """ #???????????? | | ?##### ! ### ## """ """ """ #???????????? | | ## *##### #?# ## = *! #???????????? | | # ##??## #?# ## """ """ """ #???????????? | | ###???# #?# ## """ """ """ #???????????? | +----------------------------------------------------+ Best States ------------- Heat Dissipation 25 Energy Generation 12 Energy Capacity 265 Matter Stores 492 Matter Capacity 500 Sight Range 16 Terrain Scan Density 10 Armor Coverage 225 Evasion (%) 50 Recoil Reduction 2 Item Schematics ----------------- None Robot Schematics ------------------ None Fabricated ------------ Nothing Alien Tech Used ----------------- None Achievements -------------- None Challenges ------------ None Game ------ Seed GrapheneChainFlightbrick Manual? 0 Play Time 00:15:46 Cumulative 4.1 hours Start 2024.04.16 @ 19:56:10 End 2024.04.16 @ 20:09:05 Sessions 1 Manual Loads 0 Difficulty Rogue Special Mode None Game No. 4 Rogue 2 Adventurer 2 Explorer 0 Win Type - Total 0 Types 0/0/0/0/0/0/0/0/0 Lore% 6 Gallery% 7 Achievement% 12 Wizard Run 0 Options --------- Layout 1 ASCII 0 Keyboard 0 Movement Mouse Keybinds 0 Fullscreen 1 Font 24/Smallcaps Map View 50x40 Zoom Use 0% Tactical HUD 0 Map Filters NONE Filters NONE Steam 1 RUN: 60c9b3c9-4e51-44e9-b856-4cb7e2ffb6cb